Cogmind - Beta 10.2 @@@ ROGUE MODE // 2021.02.25 @ 01:36:46 Player: ShuSh Result: Destroyed by B-99 Colossus with Linear Accelerator Performance ------------- Evolutions (9) 4500 Regions Visited (27) 5400 Robots Destroyed (210) 1050 Value Destroyed (16890) 16890 Prototype IDs (27) 540 Alien Tech Used (0) 0 Bonus (16064) 16064 TOTAL SCORE: 44444 Bonus ------- High Alert Combat Kills 888 Follower Combat Kills 8320 Entered Garrisons 2000 Used RIF Installer 5000 Friendly Fire -144 Cogmind --------- Core Integrity 0/1600 Matter 290/300 Energy 100/100 System Corruption 28% Temperature Cool (0) Movement Immobile (Siege) Location -1/Access Parts ------- > --- POWER (1) -------- (None) > --- PROPULSION (2) --- Advanced Heavy Siege Treads > --- UTILITY (20) ----- Relay Coupler [Sentry] (10) > --- WEAPON (2) ------- (None) > --- INVENTORY (4) ---- Improved Antigrav System Peak State ------------ > --- POWER ------------ Quantum Reactor > --- PROPULSION ------- Experimental Biometal Heavy Treads > --- UTILITY ---------- Advanced Heat Sink Advanced Heat Sink Advanced Heat Sink Advanced Heat Sink Large Storage Unit Large Storage Unit Large Storage Unit Enhanced Optical Array Advanced Targeting Computer Advanced Targeting Computer Advanced Reaction Control System Improved Weapon Shielding Relay Coupler [Swarmer] Relay Coupler [Grunt] Relay Coupler [Sentry] Relay Coupler [Demolisher] Relay Coupler [Hunter] System Guard Mini Drone Bay > --- WEAPON ----------- Gamma Bomb Array Advanced Remote Datajack > --- INVENTORY -------- Particle Reactor Biometal Heavy Treads Biometal Heavy Treads Advanced Heavy Siege Treads Advanced Heavy Siege Treads Relay Coupler [Grunt] Gamma Rifle Gamma Rifle Gamma Rifle Quantum Rifle Enhanced Quantum Rifle KE Penetrator KE Penetrator Railgun Advanced Remote Datajack Force Lance Force Lance [Rating: 137] Favorites ----------- Power Fission Core Engine Improved Deuterium Engine Power Core Fission Core Reactor Antimatter Reactor Propulsion Armored Treads Treads Armored Treads Leg Aluminum Leg Wheel Armored Wheel Utility Large Storage Unit Device Energy Mantle Storage Large Storage Unit Processor Enhanced Optical Array Hackware Relay Coupler [Grunt] Protection Improved Powered Armor Weapon Remote Datajack Energy Gun Small Laser Energy Cannon Advanced Beam Cannon Ballistic Gun Autogun Launcher Gamma Bomb Array Special Weapon Remote Datajack Slashing Weapon Great Axe Piercing Weapon Force Lance Special Melee Weapon Datajack Build | -11 -10 -10 -9 -9 -9 -8 -8 -8 -7 -7 -7 -7 -6 -6 -6 -6 -5 -5 -4 -4 -3 -3 -2 -2 -2 -2 -1 ------- Run | Scr Mat Min Mat Min Exi Min Mat Gar Fac Gar Fac Gar Fac Gar Fac Gar Fac Gar Fac Gar Res Gar Res Gar Res Gar Acc Slots Evolved 18 | . . . 2 . . . 2 . 2 . . . 2 . . . 2 . 2 . 2 . 2 . . . 2 Power . | . . . . . . . . . . . . . . . . . . . . . . . . . . . . Propulsion . | . . . . . . . . . . . . . . . . . . . . . . . . . . . . Utility 18 | . . . 2 . . . 2 . 2 . . . 2 . . . 2 . 2 . 2 . 2 . . . 2 Weapon . | . . . . . . . . . . . . . . . . . . . . . . . . . . . . Parts Attached 425 | . 13 5 17 1 1 15 22 13 21 10 6 21 9 30 10 8 4 17 14 15 25 29 5 19 24 24 47 Power 33 | . 3 . 3 . . 1 2 2 2 . 1 1 1 1 2 . . . 1 . 1 1 1 2 1 2 5 Engine 10 | . 2 . 2 . . . 1 1 2 . 1 1 . . . . . . . . . . . . . . . Core 11 | . 1 . 1 . . 1 1 1 . . . . 1 1 2 . . . . . . 1 . . . . 1 Reactor 12 | . . . . . . . . . . . . . . . . . . . 1 . 1 . 1 2 1 2 4 Propulsion 45 | . 4 . 5 . . 3 6 1 1 . 2 1 1 5 3 . . 1 . . 2 3 . . 2 . 5 Treads 33 | . . . . . . 1 5 1 1 . 2 1 1 5 3 . . 1 . . 2 3 . . 2 . 5 Leg 6 | . 4 . 2 . . . . . . . . . . . . . . . . . . . . . . . . Wheel 6 | . . . 3 . . 2 1 . . . . . . . . . . . . . . . . . . . . Hover . | . . . . . . . . . . . . . . . . . . . . . . . . . . . . Flight . | . . . . . . . . . . . . . . . . . . . . . . . . . . . . Utility 237 | . 1 2 5 1 1 2 5 2 11 8 1 15 6 21 5 8 3 11 12 14 18 24 4 14 13 12 18 Device 46 | . . 2 1 . . 1 2 . 1 . . . 1 1 . . . . 2 1 5 6 3 3 5 2 10 Storage 21 | . . . 2 1 . 1 . . 3 . . . . . 1 . . . 3 . 1 4 . 2 1 1 1 Processor 8 | . . . . . 1 . . 1 1 . . . . 1 . . . . . . . . . . . 2 2 Hackware 115 | . . . . . . . . . 3 6 1 12 3 13 3 8 2 10 6 11 5 7 1 9 7 3 5 Protection 47 | . 1 . 2 . . . 3 1 3 2 . 3 2 6 1 . 1 1 1 2 7 7 . . . 4 . Artifact . | . . . . . . . . . . . . . . . . . . . . . . . . . . . . Weapon 110 | . 5 3 4 . . 9 9 8 7 2 2 4 1 3 . . 1 5 1 1 4 1 . 3 8 10 19 Energy Gun 14 | . 1 3 . . . 4 . . . . . . . . . . . 1 . . . . . 1 . 3 1 Energy Cannon 13 | . . . 3 . . 1 3 3 2 1 . . . . . . . . . . . . . . . . . Ballistic Gun 22 | . 3 . 1 . . 2 4 2 2 . 2 1 . 1 . . . 1 . . . . . . . 2 1 Ballistic Cannon . | . . . . . . . . . . . . . . . . . . . . . . . . . . . . Launcher 13 | . 1 . . . . 2 2 3 1 . . . . . . . . . . . . . . . 2 . 2 Special Weapon 26 | . . . . . . . . . 1 . . 1 . 1 . . 1 2 1 1 1 1 . 1 4 3 8 Impact Weapon . | . . . . . . . . . . . . . . . . . . . . . . . . . . . . Slashing Weapon 4 | . . . . . . . . . . 1 . 2 1 . . . . . . . . . . . . . . Piercing Weapon 17 | . . . . . . . . . . . . . . 1 . . . 1 . . 3 . . 1 2 2 7 Special Melee Weapon 1 | . . . . . . . . . 1 . . . . . . . . . . . . . . . . . . Unidentified Prototypes 6 | . . . . . 1 . . . 1 . 1 . . . . . . . . . 1 . . 1 1 . . Parts Lost 137 | . 5 3 2 . . 8 9 7 4 3 1 . 1 3 2 . . 4 1 1 6 8 . 6 9 5 49 Power 9 | . 1 . . . . 1 . 1 . . . . . . . . . . . . . . . . . 1 5 Propulsion 23 | . 2 . 1 . . 2 2 1 1 . . . 1 1 1 . . 2 . . 1 2 . . 1 . 5 Utility 73 | . 1 . . . . . 3 1 1 1 . . . 2 1 . . 1 1 1 4 6 . 6 6 3 35 Weapon 32 | . 1 3 1 . . 5 4 4 2 2 1 . . . . . . 1 . . 1 . . . 2 1 4 Highest Loss Streak 28 | . 5 2 1 . . 3 3 6 3 1 1 . 1 1 1 . . 3 1 1 3 6 . 2 3 2 28 Average Slot Usage (%) 92 | . 85 92 94 100 100 99 99 98 96 88 100 95 96 96 92 90 93 88 90 90 94 92 86 93 83 90 82 Engine 1 | . 10 14 7 . . . 2 4 7 7 7 7 4 . . . . . . . . . . . . . . Core 2 | . 3 . 3 11 11 11 6 4 . . . . 1 6 6 6 5 5 1 . . 2 . . . . . Reactor 1 | . . . . . . . . . . . . . . . . . . . 3 5 4 1 3 4 4 3 3 Treads 8 | . . . . . . 4 16 17 14 15 15 14 13 12 12 13 11 8 5 5 5 5 4 4 4 4 3 Leg 1 | . 27 28 12 . . . . . . . . . . . . . . . . . . . . . . . . Wheel 1 | . . . 9 22 22 16 . . . . . . . . . . . . . . . . . . . . . Device 4 | . . 7 15 11 2 . 8 9 7 . . . 2 . . . . . 4 5 7 8 8 8 7 9 11 Storage 19 | . 14 14 14 28 33 32 27 27 23 23 23 23 20 20 19 20 17 17 15 15 15 16 17 16 17 17 14 Processor 4 | . . . . . 8 11 9 8 11 7 7 . . . 6 6 5 5 5 5 4 4 4 4 4 5 12 Hackware 24 | . . . . . . . . . 3 14 15 26 33 37 29 25 34 33 39 32 32 26 26 33 33 31 24 Protection 7 | . 1 . 8 4 . . 8 8 11 4 15 5 6 4 2 4 5 3 5 9 13 14 13 11 3 8 5 Energy Cannon 1 | . . . 15 11 11 7 7 8 6 . 6 . . . . . . . . . . . . . . . . Ballistic Gun 2 | . 19 11 4 11 11 5 9 8 6 . 6 4 . . . . . . . . . . . . . 1 . Special Weapon 3 | . . . . . . . . . . 6 . 6 6 6 6 6 5 5 5 5 3 3 4 4 3 3 2 Piercing Weapon 3 | . . . . . . . . . . . . . . 4 6 6 5 4 5 5 4 4 4 4 4 2 3 Naked Turns . | . . . . . . . . . . . . . . . . . . . . . . . . . . . . Heaviest Build 151 | 9 15 12 50 55 55 55 61 62 77 76 76 72 71 74 82 82 82 82 90 92 151 137 136 135 132 123 106 Greatest Support 85 | 20 20 20 28 28 28 28 40 40 40 40 48 48 40 50 60 60 60 70 70 70 70 70 70 70 85 85 85 Greatest Overweight (x) 5 | . . . 4 1 1 4 5 2 3 1 1 3 1 3 2 1 1 2 1 1 2 3 1 1 1 1 1 Average Overweight (x) . | . . . . 1 1 1 1 1 1 1 1 1 1 1 1 1 1 . 1 1 1 1 1 1 . . . Largest Inventory Capacity 22 | . 6 6 16 20 20 20 20 20 22 22 22 22 22 22 22 22 22 22 22 22 22 22 22 22 22 22 22 Average Capacity 20 | . 6 6 9 18 20 19 20 20 21 22 22 22 22 22 21 22 22 22 22 22 22 22 22 22 22 22 21 Most Carried 22 | . 6 6 15 16 17 20 20 20 22 22 22 22 22 22 22 22 22 22 22 22 22 22 22 22 22 22 22 Average Carried 19 | . 5 5 8 15 16 17 19 18 20 21 21 21 21 21 21 21 21 21 21 21 20 18 21 21 21 21 18 Final Capacity 22 | 6 6 6 16 20 20 20 20 20 22 22 22 22 22 22 22 22 22 22 22 22 22 22 22 22 22 22 4 Final Carried 22 | 6 6 5 14 16 17 19 18 20 20 22 22 22 22 22 22 22 22 22 22 22 16 22 22 22 20 22 1 Class Distribution -------------------- 65% | Botlord-Mutant 14% | Hauler-Mutant 13% | Bothacker-Mutant 4% | Mutant Dominant Class ---------------- Mutant | -10/Materials Scavenger-Mutant | -10/Mines Scavenger-Mutant | -9/Materials Hauler-Mutant | -9/Mines Hauler-Mutant | -9/Exiles Hauler-Mutant | -8/Mines Hauler-Mutant | -8/Materials Hauler-Mutant | -8/Garrison Hauler-Mutant | -7/Factory Bothacker-Mutant | -7/Garrison Hauler-Mutant | -7/Factory Bothacker-Mutant | -7/Garrison Bothacker-Mutant | -6/Factory Botlord-Mutant | -6/Garrison Botlord-Mutant | -6/Factory Botlord-Mutant | -6/Garrison Botlord-Mutant | -5/Factory Botlord-Mutant | -5/Garrison Botlord-Mutant | -4/Factory Botlord-Mutant | -4/Garrison Botlord-Mutant | -3/Research Botlord-Mutant | -3/Garrison Botlord-Mutant | -2/Research Botlord-Mutant | -2/Garrison Botlord-Mutant | -2/Research Botlord-Mutant | -2/Garrison Botlord-Mutant | -1/Access Resources | -11 -10 -10 -9 -9 -9 -8 -8 -8 -7 -7 -7 -7 -6 -6 -6 -6 -5 -5 -4 -4 -3 -3 -2 -2 -2 -2 -1 ----------- Run | Scr Mat Min Mat Min Exi Min Mat Gar Fac Gar Fac Gar Fac Gar Fac Gar Fac Gar Fac Gar Res Gar Res Gar Res Gar Acc Matter Collected 7892 | 200 190 45 232 54 22 258 367 307 328 210 163 495 95 463 185 80 95 443 210 315 403 500 113 320 498 559 742 Remotely . | . . . . . . . . . . . . . . . . . . . . . . . . . . . . Salvage Created 10264 | . 726 104 801 104 97 673 861 575 525 80 417 60 200 60 . 111 . 275 . . 1053 722 . . 942 550 1328 Parts 503 | . 45 3 45 4 3 31 60 42 23 2 16 3 8 3 . 5 . 10 . . 43 27 . . 30 24 76 Haulers Intercepted 8 | . 2 . 1 . . . 2 . . . 1 . . . . . . . . . . . . . . . 2 Recyclers Shooed 3 | . 1 . . . . . 1 . . . . . . . . . . . . . 1 . . . . . . Parts Field Recycled . | . . . . . . . . . . . . . . . . . . . . . . . . . . . . Retrieved Matter . | . . . . . . . . . . . . . . . . . . . . . . . . . . . . Parts Self-Destructed . | . . . . . . . . . . . . . . . . . . . . . . . . . . . . Prevented . | . . . . . . . . . . . . . . . . . . . . . . . . . . . . Kills | -11 -10 -10 -9 -9 -9 -8 -8 -8 -7 -7 -7 -7 -6 -6 -6 -6 -5 -5 -4 -4 -3 -3 -2 -2 -2 -2 -1 ------- Run | Scr Mat Min Mat Min Exi Min Mat Gar Fac Gar Fac Gar Fac Gar Fac Gar Fac Gar Fac Gar Res Gar Res Gar Res Gar Acc Combat Hostiles Destroyed 177 | . 18 2 19 2 2 17 20 21 7 2 7 2 2 1 . 2 . 5 . . 9 8 . . 12 3 16 Melee 51 | . . . . . . . . . . 2 . . 2 1 . 2 . 3 . . 9 8 . . 8 2 14 Guns 55 | . 15 2 3 . . 12 5 5 2 . 6 2 . . . . . 2 . . . . . . . 1 . Cannons 44 | . . . 16 2 2 3 10 7 3 . 1 . . . . . . . . . . . . . . . . AOE 24 | . 3 . . . . 2 5 9 . . . . . . . . . . . . . . . . 3 . 2 Classes Destroyed 14 | . 4 . 2 2 1 1 . . 3 . . . . . . . . . . . . . . . . 1 . Worker 10 | . 1 . . . . 1 . . 1 . . . . . . . . . . . 5 . . . 1 . 1 Builder 3 | . . . . . . . . . 1 . . . . . . . . . . . . . . . . . 2 Tunneler 2 | . . . . 1 . . . . . . . . . . . . . . . . . . . . 1 . . Hauler 8 | . 2 . 1 . . . 2 . . . 1 . . . . . . . . . . . . . . . 2 Recycler 7 | . . . 1 . . . 1 . 1 . . . 1 . . . . . . . 3 . . . . . . Carrier 1 | . . . . . . . . . . . . . . . . . . . . . . . . . . 1 . Operator 2 | . . . . . . . . . 2 . . . . . . . . . . . . . . . . . . Swarmer 44 | . 6 . 7 . . 4 9 10 . 1 . 1 1 . . . . 1 . . . . . . . . 4 Grunt 68 | . 12 2 6 1 . 9 4 8 2 1 3 1 . . . 1 . 2 . . 3 4 . . 7 1 1 Brawler 4 | . . . . 1 . 1 . 2 . . . . . . . . . . . . . . . . . . . Duelist 4 | . . . . . . 1 . . . . . . . 1 . 1 . 1 . . . . . . . . . Sentry 18 | . . . 6 . . . 6 1 2 . 1 . . . . . . 1 . . 1 . . . . . . Hunter 17 | . . . . . 2 2 1 . 1 . 2 . . . . . . . . . 1 4 . . . . 4 Programmer 22 | . . . . . . . . . 2 . 1 . 1 . . . . . . . 4 . . . 5 2 7 Best Kill Streak 8 | . 4 1 4 1 2 4 4 8 2 1 2 1 2 1 . 2 . 1 . . 4 3 . . 5 2 3 Combat Bots Only 8 | . 3 1 4 1 2 4 4 8 1 1 2 1 1 1 . 2 . 1 . . 2 3 . . 4 2 3 Max Kills in Single Turn 4 | . 4 1 1 1 1 2 3 2 1 1 1 1 1 1 . 1 . 1 . . 1 1 . . 2 1 2 Gunslinging 1 | . . . . . . 1 . . . . . . . . . . . . . . . . . . . . . Exploded 3 | . 3 . . . . 1 3 2 . . . . . . . . . . . . . . . . 2 . 2 Melee 1 | . . . . . . . . . . 1 . . 1 1 . 1 . 1 . . 1 1 . . 1 1 1 Uniques/NPCs Destroyed . | . . . . . . . . . . . . . . . . . . . . . . . . . . . . Combat | -11 -10 -10 -9 -9 -9 -8 -8 -8 -7 -7 -7 -7 -6 -6 -6 -6 -5 -5 -4 -4 -3 -3 -2 -2 -2 -2 -1 -------- Run | Scr Mat Min Mat Min Exi Min Mat Gar Fac Gar Fac Gar Fac Gar Fac Gar Fac Gar Fac Gar Res Gar Res Gar Res Gar Acc Damage Taken 30727 | . 761 327 548 77 . 810 1534 1223 901 863 523 739 110 1658 444 409 264 851 245 557 2370 2342 250 834 2439 1532 8116 Core 4691 | . 105 80 67 24 . 235 175 227 112 141 98 96 14 269 36 13 . 194 66 24 68 308 . 23 460 220 1636 Absorbed by Shields 1983 | . . . . . . . . . . 21 . 30 . 137 . 37 . 19 169 70 218 230 46 339 326 294 47 Reduced by Siege Mode 415 | . . . . . . . . . . . . . . . . . . . . . . . . . . . 415 Core Remaining (%) 56 | 100 . 26 . . . 18 . 26 . . . 36 . . . 60 . 80 . 92 . 71 . . . 51 . Volleys Fired 780 | . 64 21 52 11 3 47 54 45 39 19 30 44 7 29 18 6 4 59 19 29 26 22 9 15 30 35 43 Largest 2 | . 2 2 2 2 2 2 2 2 2 1 2 1 1 1 1 1 1 1 1 1 1 1 1 1 1 2 2 Hottest 155 | . 70 80 136 91 91 137 104 131 96 65 93 30 30 30 30 30 30 30 30 30 40 40 40 50 80 150 155 Shots Fired 1128 | . 117 41 104 22 6 92 108 83 72 19 53 44 7 29 18 6 4 59 19 29 26 22 9 15 30 47 47 Gun 485 | . 116 41 35 11 3 58 62 36 33 . 27 13 . 2 . . . 12 . . . . . . . 28 8 Cannon 253 | . . . 69 11 3 29 43 39 32 1 26 . . . . . . . . . . . . . . . . Launcher 32 | . 1 . . . . 5 3 8 5 . . . . . . . . . . . . . . . 4 . 6 Special 358 | . . . . . . . . . 2 18 . 31 7 27 18 6 4 47 19 29 26 22 9 15 26 19 33 Kinetic 344 | . 75 15 13 11 3 25 61 36 33 . 27 13 . 2 . . . 12 . . . . . . . 12 6 Thermal 351 | . 41 26 91 11 3 57 43 20 32 1 26 . . . . . . . . . . . . . . . . Explosive 17 | . 1 . . . . 5 3 8 . . . . . . . . . . . . . . . . . . . Electromagnetic 58 | . . . . . . 5 1 19 5 . . . . . . . . . . . . . . . 4 16 8 Robot Hit Streak 26 | . 18 19 24 7 5 17 13 15 20 23 13 22 12 6 7 8 12 20 6 26 14 7 6 7 8 9 9 Robot Miss Streak 6 | . 2 1 2 2 . 3 2 6 3 2 3 1 1 1 2 . . 3 1 3 2 2 1 1 2 2 4 Penetration Max 1 | . . . . . . . . . 1 . . . . . . . . . . . . . . . . . . Secondary Targets 4 | . 1 . . . . 2 . . . . . . . . . . . . . . . . . . . 1 . Max Gunslinging Chain 1 | . 1 . . . . 1 . . . . . . . . . . . . . . . . . . . 1 . Shots Hit Robots 998 | . 80 33 71 14 4 68 79 55 59 23 41 38 9 29 11 11 4 44 15 27 59 39 7 13 46 43 76 Core Hits 377 | . 44 9 26 3 3 39 37 34 19 3 15 2 3 3 . 4 . 8 . . 21 14 . . 34 11 45 Critical Hits 38 | . 1 . 7 2 . 4 6 2 3 . . . . . . 1 . . . . 2 2 . . 5 1 2 Critical Kills 14 | . . . 3 . . . 2 1 1 . . . . . . . . . . . 2 . . . 4 1 . Critical Parts Destroyed 20 | . 1 . 2 1 . 4 3 1 2 . . . . . . 1 . . . . . 2 . . 1 . 2 Melee Attacks 283 | . . . . . . . . . 4 13 . 2 4 18 . 10 . 10 10 5 59 30 1 6 33 15 63 Impact . | . . . . . . . . . . . . . . . . . . . . . . . . . . . . Slashing 33 | . . . . . . . . . . 13 . 2 4 14 . . . . . . . . . . . . . Piercing 246 | . . . . . . . . . . . . . . 4 . 10 . 10 10 5 59 30 1 6 33 15 63 Sneak Attacks 24 | . . . . . . . . . . 2 . . 1 . . . . 1 . . 11 2 . . 2 . 5 Combat Hostiles 8 | . . . . . . . . . . 2 . . . . . . . 1 . . 2 2 . . . . 1 Follow-up Attacks 3 | . . . . . . . . . . . . . . . . . . . . . . . . . 1 1 1 Damage Inflicted 20615 | . 953 308 1266 219 72 1575 1603 1843 1500 410 977 200 225 248 . 180 . 352 6 55 2152 1150 . 34 2080 869 2338 Guns 4914 | . 758 308 297 69 12 755 506 290 540 . 451 200 . 42 . . . 199 . . . . . . . 414 73 Cannons 4301 | . . . 969 146 60 428 767 715 662 28 526 . . . . . . . . . . . . . . . . Explosions 3252 | . 194 . . . . 392 315 838 298 . . . . . . . . . . . . . . . 897 . 318 Melee 8098 | . . . . . . . . . . 382 . . 225 206 . 180 . 153 . 55 2152 1150 . 34 1173 455 1933 Ramming 50 | . 1 . . 4 . . 15 . . . . . . . . . . . 6 . . . . . 10 . 14 Kinetic 3321 | . 376 62 95 69 12 235 488 290 540 . 451 200 . 42 . . . 199 . . . . . . . 209 53 Thermal 5607 | . 382 246 1171 146 60 864 767 277 662 28 526 . . . . . . . . . . . . . 478 . . Explosive 1620 | . 75 . . . . 392 315 838 . . . . . . . . . . . . . . . . . . . Electromagnetic 1919 | . 119 . . . . 84 18 438 298 . . . . . . . . . . . . . . . 419 205 338 Impact . | . . . . . . . . . . . . . . . . . . . . . . . . . . . . Slashing 813 | . . . . . . . . . . 382 . . 225 206 . . . . . . . . . . . . . Piercing 7285 | . . . . . . . . . . . . . . . . 180 . 153 . 55 2152 1150 . 34 1173 455 1933 Highest Corruption 28 | . . . . . . . . . 1 1 4 4 . . . . 2 2 1 1 9 8 . 4 5 6 28 Average Corruption 3 | . . . . . . . . . 1 1 1 4 . . . . 2 2 1 1 7 6 . 2 3 5 11 Corruption Purged 15 | . . . . . . . . . . . . . . . . . . . . 1 1 8 . 4 . 1 . Effects 211 | . . . . . . . . . 1 6 3 34 . . . . 2 20 . . 13 36 . 2 18 45 31 Message Errors 58 | . . . . . . . . . . 4 1 11 . . . . 2 8 . . 1 5 . 1 2 15 8 Matter Fused 39 | . . . . . . . . . . . . 10 . . . . . . . . 2 9 . . 5 9 4 Heat Flow Errors 33 | . . . . . . . . . . . . 4 . . . . . 3 . . 1 9 . 1 1 10 4 Energy Discharges 30 | . . . . . . . . . 1 1 1 6 . . . . . 3 . . 2 5 . . 3 5 3 Parts Rejected 1 | . . . . . . . . . . . . . . . . . . . . . . 1 . . . . . Data Loss (minor) 18 | . . . . . . . . . . 1 . 2 . . . . . 4 . . 1 4 . . 2 4 . Data Loss (major) 3 | . . . . . . . . . . . . . . . . . . . . . 1 1 . . . 1 . Alerts 1 | . . . . . . . . . . . . . . . . . . . . . . . . . . . 1 Misdirections 2 | . . . . . . . . . . . . . . . . . . . . . . . . . . . 2 Targeting Errors 26 | . . . . . . . . . . . 1 1 . . . . . 2 . . 5 2 . . 5 1 9 Overload Shots . | . . . . . . . . . . . . . . . . . . . . . . . . . . . . Overflow Damage 574 | . 15 . 9 . . . 9 28 37 51 35 . 14 . . . . . . . 232 1 . 3 104 2 34 Projectiles 99 | . . . 9 . . . 6 17 32 . 35 . . . . . . . . . . . . . . . . Explosions 86 | . 15 . . . . . 3 11 5 . . . . . . . . . . . . . . . 52 . . Melee 389 | . . . . . . . . . . 51 . . 14 . . . . . . . 232 1 . 3 52 2 34 Knockbacks . | . . . . . . . . . . . . . . . . . . . . . . . . . . . . Impact . | . . . . . . . . . . . . . . . . . . . . . . . . . . . . Kinetic . | . . . . . . . . . . . . . . . . . . . . . . . . . . . . Secondary . | . . . . . . . . . . . . . . . . . . . . . . . . . . . . Self-Inflicted Damage 140 | . 2 . . 2 . . . 55 . . . . . . . . . . . . . . . . 26 . 55 Shots 14 | . 1 . . . . . . 3 . . . . . . . . . . . . . . . . 4 . 6 Rammed 9 | . 1 . . 1 . . 3 . . . . . . . . . . . 1 . . . . . 1 . 2 Targets Rammed 9 | . 1 . . 1 . . 3 . . . . . . . . . . . 1 . . . . . 1 . 2 Kicked . | . . . . . . . . . . . . . . . . . . . . . . . . . . . . Crushed . | . . . . . . . . . . . . . . . . . . . . . . . . . . . . Highest Temperature 315 | . 241 162 315 52 96 177 48 199 144 17 110 276 3 11 12 24 3 177 . 18 74 260 18 116 113 254 223 Average Temperature 56 | . 75 65 75 26 54 62 18 92 49 6 40 65 2 4 5 9 3 35 . 6 17 69 9 29 18 57 57 Received Heat Transfer 4054 | . 366 183 159 6 . 234 396 468 225 249 93 140 9 238 48 83 9 130 4 42 171 64 27 152 328 203 27 Effects 5 | . 3 . 1 . . . . . . . . 1 . . . . . . . . . . . . . . . Energy Bleed 1 | . . . 1 . . . . . . . . . . . . . . . . . . . . . . . . Interference 4 | . 3 . . . . . . . . . . 1 . . . . . . . . . . . . . . . Siege Activations 2 | . . . . . . . . . . . . . . . . . . . . . . . . . . . 2 Total Turns 25 | . . . . . . . . . . . . . . . . . . . . . . . . . . . 25 Longest Duration 17 | . . . . . . . . . . . . . . . . . . . . . . . . . . . 17 Robots Corrupted 2 | . . . . . . . . . 1 . . . . . . . . . . . . . . . 1 . . Combat Hostiles 2 | . . . . . . . . . 1 . . . . . . . . . . . . . . . 1 . . Parts Fried 7 | . . . . . . . . 2 1 . . . . . . . . . . . . . . . 1 . 3 Impact Corruptions . | . . . . . . . . . . . . . . . . . . . . . . . . . . . . Robots Melted 1 | . . . . . . . . . 1 . . . . . . . . . . . . . . . . . . Combat Hostiles 1 | . . . . . . . . . 1 . . . . . . . . . . . . . . . . . . Parts Melted 9 | . . . 5 . 1 2 . . . . . . . . . . . . . . 1 . . . . . . Heat Transferred 9566 | . 1002 550 2090 259 111 1702 1295 481 1036 37 703 . . . . . . . . . . . . . 300 . . Parts Sabotaged . | . . . . . . . . . . . . . . . . . . . . . . . . . . . . Parts Stolen . | . . . . . . . . . . . . . . . . . . . . . . . . . . . . Parts Stripped . | . . . . . . . . . . . . . . . . . . . . . . . . . . . . Power Chain Reactions 2 | . . . . . . . . . . . . . . . . . . . . . . . . . 2 . . Missiles Intercepted . | . . . . . . . . . . . . . . . . . . . . . . . . . . . . Alert | -11 -10 -10 -9 -9 -9 -8 -8 -8 -7 -7 -7 -7 -6 -6 -6 -6 -5 -5 -4 -4 -3 -3 -2 -2 -2 -2 -1 ------- Run | Scr Mat Min Mat Min Exi Min Mat Gar Fac Gar Fac Gar Fac Gar Fac Gar Fac Gar Fac Gar Res Gar Res Gar Res Gar Acc Peak Influence 959 | . 463 187 521 232 . 188 354 959 634 844 728 867 575 848 445 693 411 351 196 526 785 744 442 711 745 543 520 Initial 503 | . . 127 72 177 . . 39 230 503 308 443 473 438 52 445 57 363 123 184 14 295 483 418 288 399 208 325 Average 411 | . 271 145 345 118 . 94 176 696 523 544 556 711 354 588 76 506 289 232 45 396 561 611 345 471 356 385 145 Maximum Alert Level 3 | . 2 . 2 1 . . 1 3 2 3 3 3 2 3 2 2 2 1 . 2 3 3 2 3 3 2 2 Low Security (%) 22 | . 26 100 19 82 . 100 71 . . . . . 25 11 98 16 11 36 100 11 . . . . 18 . 71 Level 1 22 | . 57 . 39 18 . . 28 10 . 32 . . 18 11 . 4 83 63 . 26 19 . 45 29 40 45 20 Level 2 44 | . 15 . 40 . . . . 43 100 35 95 43 55 36 1 79 5 . . 61 62 86 54 63 36 54 8 Level 3 10 | . . . . . . . . 45 . 32 4 56 . 40 . . . . . . 18 13 . 7 3 . . Level 4 . | . . . . . . . . . . . . . . . . . . . . . . . . . . . . Level 5 . | . . . . . . . . . . . . . . . . . . . . . . . . . . . . High Security . | . . . . . . . . . . . . . . . . . . . . . . . . . . . . Max Security . | . . . . . . . . . . . . . . . . . . . . . . . . . . . . Squads Dispatched 59 | . 6 . . . . . 4 . 7 . 3 . 3 . 3 . 3 . 3 . 7 . 3 . 10 . 7 Investigation 6 | . 1 . . . . . 1 . 3 . 1 . . . . . . . . . . . . . . . . Extermination 18 | . . . . . . . . . 2 . 1 . 2 . 2 . 1 . 2 . 3 . 1 . 2 . 2 Reinforcement 19 | . 5 . . . . . 1 . 2 . 1 . 1 . 1 . . . 1 . . . . . 3 . 4 Assault 2 | . . . . . . . . . . . . . . . . . . . . . 1 . . . 1 . . Garrison 14 | . . . . . . . 2 . . . . . . . . . 2 . . . 3 . 2 . 4 . 1 Intercept . | . . . . . . . . . . . . . . . . . . . . . . . . . . . . Construction Impeded . | . . . . . . . . . . . . . . . . . . . . . . . . . . . . Haulers Reinforced 5 | . . . . . . . . . . . 1 . . . . . . . . . . . . . 2 . 2 Stealth | -11 -10 -10 -9 -9 -9 -8 -8 -8 -7 -7 -7 -7 -6 -6 -6 -6 -5 -5 -4 -4 -3 -3 -2 -2 -2 -2 -1 --------- Run | Scr Mat Min Mat Min Exi Min Mat Gar Fac Gar Fac Gar Fac Gar Fac Gar Fac Gar Fac Gar Res Gar Res Gar Res Gar Acc Distress Signals 18 | . 1 . 2 . . . 2 . . . 1 . . . . . . . . . 3 . . . . . 9 Communications Jammed 307 | . . . . . . . . . . . . . . . 2 . . . . . 16 . . . 160 . 129 Distress Signals 306 | . . . . . . . . . . . . . . . 2 . . . . . 15 . . . 160 . 129 Times Spotted 674 | . 40 5 34 2 . 22 31 30 23 38 14 34 13 37 12 19 6 38 18 27 39 28 13 27 42 19 63 Peak Tracking Total 9 | . 8 2 5 2 . 4 7 9 3 7 3 4 4 4 3 6 2 4 6 4 6 6 3 4 9 2 6 Tactical Retreats 56 | . 7 1 7 . . 5 6 6 6 5 1 1 . . . 2 . 2 1 . 1 . . 1 1 1 2 Traps | -11 -10 -10 -9 -9 -9 -8 -8 -8 -7 -7 -7 -7 -6 -6 -6 -6 -5 -5 -4 -4 -3 -3 -2 -2 -2 -2 -1 ------- Run | Scr Mat Min Mat Min Exi Min Mat Gar Fac Gar Fac Gar Fac Gar Fac Gar Fac Gar Fac Gar Res Gar Res Gar Res Gar Acc Traps Triggered 72 | . 1 . . . . . 3 4 1 7 1 9 . 6 1 8 . 10 . 3 1 5 . 5 1 5 1 Indirectly . | . . . . . . . . . . . . . . . . . . . . . . . . . . . . Trap Hack Attempts . | . . . . . . . . . . . . . . . . . . . . . . . . . . . . Triggered . | . . . . . . . . . . . . . . . . . . . . . . . . . . . . Disarmed . | . . . . . . . . . . . . . . . . . . . . . . . . . . . . Reprogrammed . | . . . . . . . . . . . . . . . . . . . . . . . . . . . . Reused . | . . . . . . . . . . . . . . . . . . . . . . . . . . . . Traps Extracted . | . . . . . . . . . . . . . . . . . . . . . . . . . . . . Installed . | . . . . . . . . . . . . . . . . . . . . . . . . . . . . Triggered 1 | . . . . . . . . . 1 . . . . . . . . . . . . . . . . . . Machines | -11 -10 -10 -9 -9 -9 -8 -8 -8 -7 -7 -7 -7 -6 -6 -6 -6 -5 -5 -4 -4 -3 -3 -2 -2 -2 -2 -1 ---------- Run | Scr Mat Min Mat Min Exi Min Mat Gar Fac Gar Fac Gar Fac Gar Fac Gar Fac Gar Fac Gar Res Gar Res Gar Res Gar Acc Machines Disabled 63 | . 2 . . . . . . 3 . 3 7 4 . 7 . 4 1 6 . 6 2 5 . 4 3 4 2 Max in Single Turn 2 | . 2 . . . . . . 1 . 1 1 1 . 1 . 1 . 1 . 1 . 1 . 1 2 1 1 Garrison Access 3 | . . . . . . . . . . . . . . . . . . . . . 1 . . . 1 . 1 Garrison Relay 40 | . . . . . . . . 2 . 3 . 4 . 6 . 4 . 5 . 4 . 4 . 4 . 4 . Phase Generator 1 | . . . . . . . . . . . . . . . . . . . . 1 . . . . . . . Machines Sabotaged . | . . . . . . . . . . . . . . . . . . . . . . . . . . . . Garrisons Compromised . | . . . . . . . . . . . . . . . . . . . . . . . . . . . . Overloaded Fab Kills . | . . . . . . . . . . . . . . . . . . . . . . . . . . . . Fab Network Shutdowns . | . . . . . . . . . . . . . . . . . . . . . . . . . . . . Hacking | -11 -10 -10 -9 -9 -9 -8 -8 -8 -7 -7 -7 -7 -6 -6 -6 -6 -5 -5 -4 -4 -3 -3 -2 -2 -2 -2 -1 --------- Run | Scr Mat Min Mat Min Exi Min Mat Gar Fac Gar Fac Gar Fac Gar Fac Gar Fac Gar Fac Gar Res Gar Res Gar Res Gar Acc Machines Accessed 56 | . 3 . 8 1 1 1 4 . 3 . 3 . 6 . 3 . 5 . 4 . 4 . 1 . 2 . 7 Terminals 34 | . 3 . 7 . . 1 3 . 1 . 1 . 4 . 2 . 3 . 1 . 2 . . . . . 6 Fabricators 3 | . . . . . . . . . . . 1 . . . . . 1 . 1 . . . . . . . . Repair Stations 1 | . . . . . . . . . . . . . . . . . . . 1 . . . . . . . . Recycling Units 1 | . . . . . . . . . . . . . 1 . . . . . . . . . . . . . . Scanalyzers 2 | . . . 1 . . . . . 1 . . . . . . . . . . . . . . . . . . Garrison Access 13 | . . . . . . . 1 . 1 . 1 . 1 . 1 . 1 . 1 . 2 . 1 . 2 . 1 Total Hacks 129 | . 13 . 29 1 1 2 11 . 8 . 8 . 13 . 6 . 8 . 8 . 6 . 3 . 2 . 10 Successful 74 | . 10 . 22 1 1 1 6 . 3 . 5 . 6 . 3 . 3 . 6 . 3 . 1 . 2 . 1 Failed 54 | . 2 . 7 . . 1 5 . 5 . 3 . 7 . 3 . 5 . 2 . 3 . 2 . . . 9 Catastrophic 13 | . . . 2 . . . 1 . 1 . . . . . 1 . 3 . . . 1 . . . . . 4 Database Lockouts 1 | . 1 . . . . . . . . . . . . . . . . . . . . . . . . . . Manual 51 | . 12 . 9 . 1 2 6 . 4 . 3 . 10 . . . . . 1 . . . 2 . . . 1 Terminals 90 | . 13 . 19 . . 2 10 . 4 . 4 . 11 . 5 . 6 . 3 . 4 . . . . . 9 Fabricators 6 | . . . . . . . . . . . 3 . . . . . 1 . 2 . . . . . . . . Repair Stations 2 | . . . . . . . . . . . . . . . . . . . 2 . . . . . . . . Recycling Units 1 | . . . . . . . . . . . . . 1 . . . . . . . . . . . . . . Scanalyzers 13 | . . . 10 . . . . . 3 . . . . . . . . . . . . . . . . . . Garrison Access 15 | . . . . . . . 1 . 1 . 1 . 1 . 1 . 1 . 1 . 2 . 3 . 2 . 1 Terminal Hacks 30 | . 7 . 5 1 1 1 3 . . . 2 . 3 . 2 . 2 . 2 . 1 . . . . . . Record 2 | . . . . . 1 . . . . . . . . . . . . . 1 . . . . . . . . Part Schematic 1 | . . . . . . . . . . . 1 . . . . . . . . . . . . . . . . Robot Analysis 4 | . 2 . 1 . . 1 . . . . . . . . . . . . . . . . . . . . . Prototype ID Bank 8 | . 4 . 1 . . . 1 . . . . . . . 1 . . . 1 . . . . . . . . Open Door 1 | . . . . 1 . . . . . . . . . . . . . . . . . . . . . . . Branch Access Points 2 | . . . 1 . . . 1 . . . . . . . . . . . . . . . . . . . . Fabricator Index 1 | . . . . . . . . . . . 1 . . . . . . . . . . . . . . . . Unreport Threat 3 | . . . . . . . . . . . . . 2 . . . 1 . . . . . . . . . . Locate Traps 6 | . 1 . 1 . . . 1 . . . . . 1 . . . 1 . . . 1 . . . . . . Zone Layout 2 | . . . 1 . . . . . . . . . . . 1 . . . . . . . . . . . . Fabricator Hacks 3 | . . . . . . . . . . . 2 . . . . . . . 1 . . . . . . . . Load Schematic 1 | . . . . . . . . . . . 1 . . . . . . . . . . . . . . . . Build 2 | . . . . . . . . . . . 1 . . . . . . . 1 . . . . . . . . Repair Station Hacks 1 | . . . . . . . . . . . . . . . . . . . 1 . . . . . . . . Scan Component 1 | . . . . . . . . . . . . . . . . . . . 1 . . . . . . . . Recycling Unit Hacks . | . . . . . . . . . . . . . . . . . . . . . . . . . . . . Scanalyzer 12 | . . . 10 . . . . . 2 . . . . . . . . . . . . . . . . . . Insert Component 6 | . . . 5 . . . . . 1 . . . . . . . . . . . . . . . . . . Analyze 6 | . . . 5 . . . . . 1 . . . . . . . . . . . . . . . . . . Garrison Access Hacks 13 | . . . . . . . 1 . 1 . 1 . 1 . 1 . 1 . 1 . 2 . 1 . 2 . 1 Unlock Access 12 | . . . . . . . 1 . 1 . 1 . 1 . 1 . 1 . 1 . 2 . 1 . 2 . . Seal Access 1 | . . . . . . . . . . . . . . . . . . . . . . . . . . . 1 Unauthorized Hacks 15 | . 3 . 7 . . . 2 . . . . . 2 . . . . . 1 . . . . . . . . Terminals 15 | . 3 . 7 . . . 2 . . . . . 2 . . . . . 1 . . . . . . . . Track 5 | . 1 . 3 . . . . . . . . . 1 . . . . . . . . . . . . . . Botnet 10 | . 2 . 4 . . . 2 . . . . . 1 . . . . . 1 . . . . . . . . Fabricators . | . . . . . . . . . . . . . . . . . . . . . . . . . . . . Repair Stations . | . . . . . . . . . . . . . . . . . . . . . . . . . . . . Recycling Units . | . . . . . . . . . . . . . . . . . . . . . . . . . . . . Scanalyzers . | . . . . . . . . . . . . . . . . . . . . . . . . . . . . Garrison Access . | . . . . . . . . . . . . . . . . . . . . . . . . . . . . Data Cores Recovered 1 | . . . . . . . . . 1 . . . . . . . . . . . . . . . . . . Used . | . . . . . . . . . . . . . . . . . . . . . . . . . . . . Hacking Detections 43 | . 2 . 7 . . 1 3 . 3 . 2 . 6 . 2 . 4 . 4 . 2 . 1 . . . 6 Full Trace Events 2 | . . . . . . . . . 1 . 1 . . . . . . . . . . . . . . . . Feedback Events . | . . . . . . . . . . . . . . . . . . . . . . . . . . . . Feedback Blocked . | . . . . . . . . . . . . . . . . . . . . . . . . . . . . Robot Schematics Acquired . | . . . . . . . . . . . . . . . . . . . . . . . . . . . . Robots Built . | . . . . . . . . . . . . . . . . . . . . . . . . . . . . Matter . | . . . . . . . . . . . . . . . . . . . . . . . . . . . . Time . | . . . . . . . . . . . . . . . . . . . . . . . . . . . . Total Robot Build Rating . | . . . . . . . . . . . . . . . . . . . . . . . . . . . . Part Schematics Acquired 6 | . . . 5 . . . . . 1 . . . . . . . . . . . . . . . . . . Parts Built 3 | . . . . . . . . . . . 1 . . . . . . . 2 . . . . . . . . Matter 402 | . . . . . . . . . . . 168 . . . . . . . 234 . . . . . . . . Time 159 | . . . . . . . . . . . 42 . . . . . . . 117 . . . . . . . . Total Part Build Rating 18 | . . . . . . . . . . . 4 . . . . . . . 14 . . . . . . . . Parts Repaired . | . . . . . . . . . . . . . . . . . . . . . . . . . . . . Time . | . . . . . . . . . . . . . . . . . . . . . . . . . . . . Parts Recycled . | . . . . . . . . . . . . . . . . . . . . . . . . . . . . Recycled Matter . | . . . . . . . . . . . . . . . . . . . . . . . . . . . . Retrieved Matter . | . . . . . . . . . . . . . . . . . . . . . . . . . . . . Retrieved Components . | . . . . . . . . . . . . . . . . . . . . . . . . . . . . Parts Scanalyzed 6 | . . . 5 . . . . . 1 . . . . . . . . . . . . . . . . . . Part Schematics Acquired 6 | . . . 5 . . . . . 1 . . . . . . . . . . . . . . . . . . Parts Damaged 2 | . . . 2 . . . . . . . . . . . . . . . . . . . . . . . . Bothacking | -11 -10 -10 -9 -9 -9 -8 -8 -8 -7 -7 -7 -7 -6 -6 -6 -6 -5 -5 -4 -4 -3 -3 -2 -2 -2 -2 -1 ------------ Run | Scr Mat Min Mat Min Exi Min Mat Gar Fac Gar Fac Gar Fac Gar Fac Gar Fac Gar Fac Gar Res Gar Res Gar Res Gar Acc Used RIF Installer 10 | . . . . . . . . 1 . 1 . 1 . 1 . 1 . 1 . 1 . 1 . 1 . 1 . Hotswap 1 | . . . . . . . . . . . . . . . . . . . . . . . . . . 1 . Threat Obfuscator 1 | . . . . . . . . . . . . . . . . 1 . . . . . . . . . . . Signal Jammer 1 | . . . . . . . . . . 1 . . . . . . . . . . . . . . . . . Robot Detection 1 | . . . . . . . . . . . . . . 1 . . . . . . . . . . . . . Watcher Feeds 1 | . . . . . . . . . . . . . . . . . . . . 1 . . . . . . . Structural Interface 1 | . . . . . . . . . . . . 1 . . . . . . . . . . . . . . . Program Shield 1 | . . . . . . . . . . . . . . . . . . . . . . . . 1 . . . Autooverride 1 | . . . . . . . . . . . . . . . . . . 1 . . . . . . . . . Autoassimilate 1 | . . . . . . . . . . . . . . . . . . . . . . 1 . . . . . Robots Hacked 284 | . . . . . . . . . 5 15 . 23 5 22 9 6 3 29 15 22 21 19 8 21 14 15 32 Non-combat 30 | . . . . . . . . . . . . . 3 . 3 . . . 5 . 5 . 1 . 5 . 8 Combat 254 | . . . . . . . . . 5 15 . 23 2 22 6 6 3 29 10 22 16 19 7 21 9 15 24 Autooverrided 18 | . . . . . . . . . . . . . . . . . . . 1 2 4 3 . 3 . 2 3 Autoassimilated 28 | . . . . . . . . . . . . . . . . . . . . . . 5 2 8 . 4 9 Robot Hacks Applied 277 | . . . . . . . . . 6 15 . 25 6 22 12 6 4 32 18 22 20 14 7 13 20 10 25 parse_system 14 | . . . . . . . . . . . . 3 1 . . . . 3 1 1 1 . . 3 . . 1 no_distress 1 | . . . . . . . . . . . . . . . . . . . . . . . . . . . 1 map_walls 1 | . . . . . . . . . . . . . . . . . . . . . . . . . . . 1 map_earth 1 | . . . . . . . . . . . . . . . . . . . 1 . . . . . . . . drop_inventory 6 | . . . . . . . . . . . . . 1 . . . . . 1 . 2 . . . 2 . . ignore_parts 1 | . . . . . . . . . . . . . . . . . . . . . 1 . . . . . . purge_threat 11 | . . . . . . . . . . . . . . . 3 . . . 1 . . . . . 4 . 3 block_reporting 1 | . . . . . . . . . . . . . . . . . . . 1 . . . . . . . . map_route 8 | . . . . . . . . . . . . . 1 . . . . . 1 . . . 1 . 2 . 3 find_garrison 6 | . . . . . . . . . 1 . . . . . 1 . 1 . . . 2 . . . 1 . . scatter_targeting 4 | . . . . . . . . . . . . . . . . . 1 1 . . 1 . . . 1 . . disrupt_area 6 | . . . . . . . . . . . . . . . . . . 3 . . 2 . . . . . 1 amplify_resonance 2 | . . . . . . . . . . 2 . . . . . . . . . . . . . . . . . disable_weapons 5 | . . . . . . . . . . . . . . . . . . 1 . 3 1 . . . . . . reboot_system 4 | . . . . . . . . . . 1 . . . 1 . . . . . . 1 . . . . 1 . go_dormant 1 | . . . . . . . . . . 1 . . . . . . . . . . . . . . . . . overwrite_iff 31 | . . . . . . . . . . 3 . 1 . 2 1 . . 4 2 2 3 6 1 2 . 1 3 streamctrl_high 2 | . . . . . . . . . . . . . . . . . . . . . 1 1 . . . . . formatsys_low 8 | . . . . . . . . . . . . . 1 . 2 . . . 2 . 2 . . . . . 1 formatsys_high 164 | . . . . . . . . . 5 8 . 21 2 19 5 6 2 20 8 16 3 7 5 8 10 8 11 Relay Couplers Released 177 | . . . . . . . . 10 . 13 . 16 . 27 3 17 . 18 . 16 3 16 . 16 6 16 . Machine Destruction 171 | . . . . . . . . 10 . 13 . 16 . 27 . 17 . 18 . 16 3 16 . 16 3 16 . Programmers 6 | . . . . . . . . . . . . . . . 3 . . . . . . . . . 3 . . Attached 114 | . . . . . . . . . 3 6 . 12 3 13 3 8 2 10 6 11 5 7 1 9 7 3 5 Robots Rewired . | . . . . . . . . . . . . . . . . . . . . . . . . . . . . Allies Hacked 4 | . . . . . . . . . . . . . 2 . . . . . . . 1 . . . . . 1 Hacks Repelled . | . . . . . . . . . . . . . . . . . . . . . . . . . . . . Allies | -11 -10 -10 -9 -9 -9 -8 -8 -8 -7 -7 -7 -7 -6 -6 -6 -6 -5 -5 -4 -4 -3 -3 -2 -2 -2 -2 -1 -------- Run | Scr Mat Min Mat Min Exi Min Mat Gar Fac Gar Fac Gar Fac Gar Fac Gar Fac Gar Fac Gar Res Gar Res Gar Res Gar Acc Total Allies 242 | . . . . 1 . . . . 5 11 . 22 3 21 8 6 2 24 12 19 13 19 8 20 9 14 25 Largest Group 15 | . . . . 1 1 . . . 3 7 1 11 10 13 13 15 9 11 13 14 14 8 13 12 12 8 11 Highest-Rated Group 717 | . . . . 31 31 . . . 48 173 32 198 206 387 387 377 232 354 368 717 717 339 595 655 562 358 591 Highest-Rated Ally 147 | . . . . 31 31 . . . 16 32 32 32 32 47 32 32 49 49 56 115 115 115 69 147 69 69 69 Total Orders 231 | . . . . . . . . . . 2 2 6 13 27 13 34 7 25 15 22 6 6 6 15 5 16 11 STAY 125 | . . . . . . . . . . 1 1 4 5 14 7 16 4 16 10 14 3 3 3 8 3 10 3 FOLLOW 89 | . . . . . . . . . . 1 1 2 4 12 5 14 3 9 5 8 2 3 3 7 2 6 2 AID 11 | . . . . . . . . . . . . . 4 1 1 4 . . . . 1 . . . . . . EXPLORE 5 | . . . . . . . . . . . . . . . . . . . . . . . . . . . 5 RETURN 1 | . . . . . . . . . . . . . . . . . . . . . . . . . . . 1 Ally Attacks 1517 | . . . . . . . . . 41 58 10 78 42 125 46 80 18 86 63 66 145 55 48 128 177 83 168 Total Damage 42986 | . . . . . . . . . 528 1337 1187 1306 830 3181 1424 1857 984 1726 1510 2717 5478 1239 1312 3091 6418 2085 4776 Kills 232 | . . . . . . . . . 3 18 8 11 7 18 10 11 6 10 8 14 25 6 7 22 26 8 14 Allies Corrupted 8 | . . . . . . . . . . . . . . . . . 1 . . . 3 . . . 1 . 3 Allies Melted . | . . . . . . . . . . . . . . . . . . . . . . . . . . . . Intel | -11 -10 -10 -9 -9 -9 -8 -8 -8 -7 -7 -7 -7 -6 -6 -6 -6 -5 -5 -4 -4 -3 -3 -2 -2 -2 -2 -1 ------- Run | Scr Mat Min Mat Min Exi Min Mat Gar Fac Gar Fac Gar Fac Gar Fac Gar Fac Gar Fac Gar Res Gar Res Gar Res Gar Acc Robot Analysis Total 4 | . 2 . 1 . . 1 . . . . . . . . . . . . . . . . . . . . . Derelict Logs Recovered 3 | . . 1 . 2 . . . . . . . . . . . . . . . . . . . . . . . Drone Launches 6 | . . . . . . . . . . . . . . . . . . . . . . . . . . . 6 Drone Recoveries 3 | . . . . . . . . . . . . . . . . . . . . . . . . . . . 3 Exploration | -11 -10 -10 -9 -9 -9 -8 -8 -8 -7 -7 -7 -7 -6 -6 -6 -6 -5 -5 -4 -4 -3 -3 -2 -2 -2 -2 -1 ------------- Run | Scr Mat Min Mat Min Exi Min Mat Gar Fac Gar Fac Gar Fac Gar Fac Gar Fac Gar Fac Gar Res Gar Res Gar Res Gar Acc Turns Passed 37672 | . 960 243 949 750 483 937 976 1139 1214 838 642 1650 949 3073 1137 3026 451 2311 988 2687 1380 1780 738 4342 1054 1599 1376 Spaces Moved 17919 | 1 574 145 570 615 448 546 401 478 513 374 278 770 424 1464 561 1366 215 1040 489 1391 588 745 332 1569 526 819 677 Core . | . . . . . . . . . . . . . . . . . . . . . . . . . . . . Treads 15079 | . . . . . . 92 368 478 513 374 278 770 424 1464 561 1366 215 1040 489 1391 588 745 332 1569 526 819 677 Legs 994 | 1 574 145 274 . . . . . . . . . . . . . . . . . . . . . . . . Wheels 1846 | . . . 296 615 448 454 33 . . . . . . . . . . . . . . . . . . . . Hover . | . . . . . . . . . . . . . . . . . . . . . . . . . . . . Flight . | . . . . . . . . . . . . . . . . . . . . . . . . . . . . Fastest Speed 95 | 120 120 120 95 105 105 105 105 190 190 190 185 185 190 180 180 180 180 160 180 180 172 172 180 180 135 135 135 Average Speed 169 | 120 120 120 123 105 105 126 184 190 190 190 185 186 190 187 180 180 180 178 180 180 183 183 180 180 160 154 146 Slowest Speed 230 | 120 120 120 150 105 105 210 210 210 230 190 190 230 190 230 200 180 180 200 180 180 200 205 180 180 180 155 165 Overloaded Moves . | . . . . . . . . . . . . . . . . . . . . . . . . . . . . Propulsion Burnouts . | . . . . . . . . . . . . . . . . . . . . . . . . . . . . Robots Hopped . | . . . . . . . . . . . . . . . . . . . . . . . . . . . . Cave-ins Triggered . | . . . . . . . . . . . . . . . . . . . . . . . . . . . . Exploration Rate (%) 55 | 2 98 49 60 96 91 91 34 72 11 65 8 65 14 98 9 98 6 98 12 99 19 98 6 99 17 96 38 Regions Visited 27 Branch Regions 4 Pre-discovered Areas 3 | . . 1 . 1 1 . . . . . . . . . . . . . . . . . . . . . . Known Exits Taken 11 | . . . 1 . . . 1 . 1 . 1 . 1 . 1 . 1 . 1 . 1 . 1 . 1 . . Unknown Exits Taken 6 | 1 1 1 . 1 1 1 . . . . . . . . . . . . . . . . . . . . . Scrap Searched 6 | . . . . 3 . 3 . . . . . . . . . . . . . . . . . . . . . Spaces Dug 9 | . . . . . . . . . . . . . . . . . . . 6 . 3 . . . . . . Terrain Destroyed 133 | . 2 . . . . 31 35 49 . . 2 . . . . . . . 6 . 3 . . . 4 1 . Melee 9 | . . . . . . . . . . . . . . . . . . . 6 . 3 . . . . . . Projectile 3 | . . . . . . . . . . . 2 . . . . . . . . . . . . . . 1 . AOE 121 | . 2 . . . . 31 35 49 . . . . . . . . . . . . . . . . 4 . . Terrain Rammed . | . . . . . . . . . . . . . . . . . . . . . . . . . . . . Walls Destroyed . | . . . . . . . . . . . . . . . . . . . . . . . . . . . . Machines Disabled . | . . . . . . . . . . . . . . . . . . . . . . . . . . . . Actions | -11 -10 -10 -9 -9 -9 -8 -8 -8 -7 -7 -7 -7 -6 -6 -6 -6 -5 -5 -4 -4 -3 -3 -2 -2 -2 -2 -1 --------- Run | Scr Mat Min Mat Min Exi Min Mat Gar Fac Gar Fac Gar Fac Gar Fac Gar Fac Gar Fac Gar Res Gar Res Gar Res Gar Acc Total 23930 | . 745 175 718 700 455 700 531 621 674 471 352 953 557 1745 675 1914 278 1431 569 1550 790 1109 470 3078 665 1093 911 Wait 3867 | . 74 4 44 67 2 77 17 53 68 21 25 69 99 156 72 485 48 268 20 89 64 240 115 1440 36 161 53 Move 17899 | . 573 144 569 614 447 545 401 477 513 373 278 769 424 1463 561 1365 214 1039 489 1389 588 744 331 1568 526 818 677 Hop . | . . . . . . . . . . . . . . . . . . . . . . . . . . . . Pick Up 303 | . 9 1 18 4 1 13 21 17 13 15 5 16 8 22 8 10 5 10 8 11 12 19 3 11 10 14 19 Fast Attach 119 | . 3 1 7 . 1 1 5 . 4 1 1 . 2 11 4 5 . 8 3 5 9 8 3 7 5 7 18 Attach 185 | . 3 3 5 1 . 8 12 8 9 8 1 12 4 14 2 3 2 6 7 8 12 12 2 9 12 8 14 Detach 13 | . . . 3 . . . . . 1 . . . . . . . . . . . . 4 1 2 . 2 . Swap 121 | . 7 1 5 . . 6 5 5 8 1 4 9 3 5 4 . 2 3 4 2 4 9 . 3 7 9 15 Drop 214 | . 11 . 15 2 1 3 13 8 12 5 6 10 6 19 6 11 3 4 8 6 16 10 5 8 6 12 8 Fire 780 | . 64 21 52 11 3 47 54 45 39 19 30 44 7 29 18 6 4 59 19 29 26 22 9 15 30 35 43 Melee 277 | . . . . . . . . . 4 13 . 2 4 18 . 10 . 10 10 5 59 30 1 6 31 14 60 Ram 2 | . . . . 1 . . . . . . . . . . . . . . . . . . . . . . 1 Kick 1 | . 1 . . . . . . . . . . . . . . . . . . . . . . . . . . Crush 6 | . . . . . . . 3 . . . . . . . . . . . 1 . . . . . 1 . 1 Escape Stasis 126 | . . . . . . . . 8 . 13 2 18 . 8 . 19 . 22 . 6 . 11 . 8 . 11 . Rewire 17 | . . . . . . . . . 3 2 . 4 . . . . . 2 . . . . . 1 1 2 2 Trap . | . . . . . . . . . . . . . . . . . . . . . . . . . . . . Miscellaneous . | . . . . . . . . . . . . . . . . . . . . . . . . . . . . Route ------- -11/Scrapyard -10/Materials (discovered 5 exits: *Mat x3 / [*Min x2]) -10/Mines -9/Materials (discovered 2 exits: *Mat / *Min) -9/Mines (discovered 4 exits: *Mat x2 / *Exi / [*Zio]) -9/Exiles -8/Mines -8/Materials (discovered 2 exits: *Fac / Gar) -8/Garrison (discovered 3 exits: *Fac x3) -7/Factory -7/Garrison (discovered 2 exits: *Fac x2) -7/Factory -7/Garrison (discovered 3 exits: *Fac x3) -6/Factory (discovered 2 exits: [Low] / Gar) -6/Garrison (discovered 3 exits: *Fac x3) -6/Factory -6/Garrison (discovered 3 exits: *Fac x3) -5/Factory -5/Garrison (discovered 3 exits: *Fac x3) -4/Factory (discovered 3 exits: Res / [Upp] / Gar) -4/Garrison (discovered 3 exits: *Res x3) -3/Research -3/Garrison (discovered 3 exits: *Res x3) -2/Research -2/Garrison (discovered 3 exits: *Res x3) -2/Research (discovered 2 exits: *Acc / Gar) -2/Garrison (discovered 2 exits: *Acc x2) -1/Access History --------- Turn | Location | Event 1 | -11/Scrapyard | Discovered new exit (range 0) 1 | -11/Scrapyard | Entered Materials 29 | -10/Materials | Central database locked down 206 | -10/Materials | Discovered new exit (range 16) 310 | -10/Materials | Build established: Mutant 482 | -10/Materials | Discovered new exit (range 14) 490 | -10/Materials | Discovered new exit (range 11) 551 | -10/Materials | Discovered new exit (range 14) 667 | -10/Materials | Lost 5 parts (1p2n1u1w) 824 | -10/Materials | Discovered new exit (range 8) 961 | -10/Materials | Entered Mines 1024 | -10/Mines | Met a Derelict bent on vengeance 1045 | -10/Mines | Core integrity fell below 50% 1102 | -10/Mines | A weapon hastily lodged in a ceiling crevice suddenly fell to the ground 1183 | -10/Mines | Discovered new exit (range 11) 1184 | -10/Mines | Learned location of Zion (-7) 1204 | -10/Mines | Entered Materials 1204 | -9/Materials | Evolved 2 slots: Utility x2 1371 | -9/Materials | Build established: Scavenger-Mutant 1418 | -9/Materials | Identified exit to Mines 1826 | -9/Materials | Discovered new exit (range 16) 2132 | -9/Materials | Build established: Mutant 2153 | -9/Materials | Entered Mines 2160 | -9/Mines | Met a Derelict who couldn't figure out how to use a Trap Extractor 2178 | -9/Mines | Discovered new exit (range 5) 2233 | -9/Mines | Learned location of Storage (-7) 2233 | -9/Mines | Discovered new exit (range 9) 2338 | -9/Mines | A Derelict revealed a hidden shortcut to a safe place 2573 | -9/Mines | Learned 4 Materials zone layouts 2785 | -9/Mines | Build established: Hauler-Mutant 2786 | -9/Mines | Received a Mining Laser from a helpful Derelict 2885 | -9/Mines | Deemed a non-threat by the Exiles lab entrance 2885 | -9/Mines | Discovered new exit (range 5) 2903 | -9/Mines | Entered Exiles 2903 | -9/Exiles | Found Exiles lab destroyed 2903 | -9/Exiles | Accompanied by 1 ally 3021 | -9/Exiles | Opened EX-Vault 3028 | -9/Exiles | Found Prototype Processor 3028 | -9/Exiles | Identified Modified TNC 3375 | -9/Exiles | Discovered new exit (range 12) 3386 | -9/Exiles | Entered Mines 3740 | -8/Mines | Core integrity fell below 50% 3764 | -8/Mines | Lost 3 parts (1p1n1w) 4246 | -8/Mines | Discovered new exit (range 6) 4267 | -8/Mines | Core integrity fell below 20% 4323 | -8/Mines | Entered Materials 4323 | -8/Materials | Evolved 2 slots: Utility x2 5012 | -8/Materials | Discovered new exit (range 4) 5132 | -8/Materials | Garrison activated, responded to threat 5280 | -8/Materials | Lost 3 parts (1n1u1w) 5299 | -8/Materials | Identified exit to Garrison 5299 | -8/Materials | Entered Garrison 5421 | -8/Garrison | Triggered checkpoint 5433 | -8/Garrison | Core integrity fell below 50% 5467 | -8/Garrison | Destroyed 8 combat bots 5480 | -8/Garrison | Lost 6 parts (1p1n1u3w) 5604 | -8/Garrison | Discovered new exit (range 14) 5710 | -8/Garrison | Triggered checkpoint 5810 | -8/Garrison | Discovered new exit (range 8) 5836 | -8/Garrison | Installed Relay Interface Framework 5902 | -8/Garrison | Triggered checkpoint 5948 | -8/Garrison | Garrison Relay disabled 6046 | -8/Garrison | Triggered checkpoint 6174 | -8/Garrison | Triggered checkpoint 6212 | -8/Garrison | Garrison Relay disabled 6419 | -8/Garrison | Discovered new exit (range 10) 6438 | -8/Garrison | Entered Factory 6438 | -7/Factory | Evolved 2 slots: Utility x2 7223 | -7/Factory | Build established: Bothacker-Mutant 7297 | -7/Factory | Lost 3 parts (1u2w) 7542 | -7/Factory | Build established: Hauler-Mutant 7652 | -7/Factory | Identified exit to Garrison 7652 | -7/Factory | Entered Garrison 7652 | -7/Garrison | Accompanied by 2 allies 7702 | -7/Garrison | Triggered checkpoint 7732 | -7/Garrison | Garrison Relay disabled 7868 | -7/Garrison | Build established: Bothacker-Mutant 7922 | -7/Garrison | Triggered checkpoint 7930 | -7/Garrison | Triggered checkpoint 8108 | -7/Garrison | Discovered new exit (range 10) 8138 | -7/Garrison | Expanded RIF knowledge: Signal Jamming 8190 | -7/Garrison | Triggered checkpoint 8220 | -7/Garrison | Garrison Relay disabled 8374 | -7/Garrison | Triggered checkpoint 8406 | -7/Garrison | Garrison Relay disabled 8473 | -7/Garrison | Discovered new exit (range 10) 8490 | -7/Garrison | Entered Factory 8490 | -7/Factory | Accompanied by 1 ally 8685 | -7/Factory | Build established: Hauler-Mutant 9050 | -7/Factory | Core integrity fell below 50% 9057 | -7/Factory | Fabricated Remote Datajack? 9132 | -7/Factory | Identified exit to Garrison 9132 | -7/Factory | Entered Garrison 9220 | -7/Garrison | Triggered checkpoint 9312 | -7/Garrison | Triggered checkpoint 9345 | -7/Garrison | Garrison Relay disabled 9347 | -7/Garrison | Build established: Bothacker-Mutant 9460 | -7/Garrison | Triggered checkpoint 9558 | -7/Garrison | Triggered checkpoint 9754 | -7/Garrison | Discovered new exit (range 12) 9826 | -7/Garrison | Triggered checkpoint 9847 | -7/Garrison | Garrison Relay disabled 9990 | -7/Garrison | Triggered checkpoint 10092 | -7/Garrison | Discovered new exit (range 9) 10162 | -7/Garrison | Triggered checkpoint 10193 | -7/Garrison | Garrison Relay disabled 10435 | -7/Garrison | Discovered new exit (range 14) 10470 | -7/Garrison | Expanded RIF knowledge: Structural Interface 10570 | -7/Garrison | Triggered checkpoint 10641 | -7/Garrison | Garrison Relay disabled 10674 | -7/Garrison | Triggered checkpoint 10782 | -7/Garrison | Entered Factory 10782 | -6/Factory | Accompanied by 9 allies 10782 | -6/Factory | Evolved 2 slots: Utility x2 11136 | -6/Factory | Discovered new exit (range 133) 11729 | -6/Factory | Identified exit to Garrison 11731 | -6/Factory | Entered Garrison 11731 | -6/Garrison | Accompanied by 5 allies 11782 | -6/Garrison | Triggered checkpoint 11784 | -6/Garrison | Spotted B-75 Beast 11784 | -6/Garrison | Spotted B-75 Beast 11927 | -6/Garrison | Triggered checkpoint 11984 | -6/Garrison | Garrison Relay disabled 12110 | -6/Garrison | Garrison Relay disabled 12274 | -6/Garrison | Triggered checkpoint 12336 | -6/Garrison | Triggered checkpoint 12408 | -6/Garrison | Triggered checkpoint 12467 | -6/Garrison | Spotted B-75 Beast 12467 | -6/Garrison | Spotted B-75 Beast 12502 | -6/Garrison | Allies destroyed B-75 Beast 12634 | -6/Garrison | Triggered checkpoint 12703 | -6/Garrison | Garrison Relay disabled 12733 | -6/Garrison | Garrison Relay disabled 12869 | -6/Garrison | Discovered new exit (range 7) 12892 | -6/Garrison | Expanded RIF knowledge: Robot Detection 13090 | -6/Garrison | Triggered checkpoint 13198 | -6/Garrison | Build established: Botlord-Mutant 13282 | -6/Garrison | Triggered checkpoint 13390 | -6/Garrison | Garrison Relay disabled 13445 | -6/Garrison | Discovered new exit (range 15) 13846 | -6/Garrison | Triggered checkpoint 14044 | -6/Garrison | Discovered new exit (range 13) 14060 | -6/Garrison | Triggered checkpoint 14243 | -6/Garrison | Garrison Relay disabled 14804 | -6/Garrison | Entered Factory 14804 | -6/Factory | Accompanied by 13 allies 15937 | -6/Factory | Identified exit to Garrison 15941 | -6/Factory | Entered Garrison 15941 | -6/Garrison | Accompanied by 13 allies 16142 | -6/Garrison | Triggered checkpoint 16177 | -6/Garrison | Garrison Relay disabled 16446 | -6/Garrison | Triggered checkpoint 16446 | -6/Garrison | Triggered checkpoint 16816 | -6/Garrison | Triggered checkpoint 17342 | -6/Garrison | Discovered new exit (range 7) 17464 | -6/Garrison | Triggered checkpoint 17688 | -6/Garrison | Garrison Relay disabled 17938 | -6/Garrison | Discovered new exit (range 4) 17956 | -6/Garrison | Expanded RIF knowledge: Threat Obfuscation 18052 | -6/Garrison | Triggered checkpoint 18063 | -6/Garrison | Garrison Relay disabled 18247 | -6/Garrison | Discovered new exit (range 12) 18360 | -6/Garrison | Triggered checkpoint 18380 | -6/Garrison | Garrison Relay disabled 18967 | -6/Garrison | Entered Factory 18967 | -5/Factory | Accompanied by 9 allies 18967 | -5/Factory | Evolved 2 slots: Utility x2 19137 | -5/Factory | Identified exit to Garrison 19292 | -5/Factory | Garrison activated, responded to threat 19293 | -5/Factory | P-70 Sage assimilated allied Guardian 5g 19418 | -5/Factory | Entered Garrison 19418 | -5/Garrison | Accompanied by 6 allies 20048 | -5/Garrison | Triggered checkpoint 20170 | -5/Garrison | Triggered checkpoint 20231 | -5/Garrison | Garrison Relay disabled 20384 | -5/Garrison | Triggered checkpoint 20501 | -5/Garrison | Discovered new exit (range 13) 20578 | -5/Garrison | Triggered checkpoint 20628 | -5/Garrison | Garrison Relay disabled 20692 | -5/Garrison | Triggered checkpoint 20741 | -5/Garrison | Lost 3 parts (2n1w) 20761 | -5/Garrison | Discovered new exit (range 10) 20794 | -5/Garrison | Triggered checkpoint 20809 | -5/Garrison | Garrison Relay disabled 20874 | -5/Garrison | Triggered checkpoint 20890 | -5/Garrison | Garrison Relay disabled 21293 | -5/Garrison | Garrison Relay disabled 21308 | -5/Garrison | Triggered checkpoint 21335 | -5/Garrison | Discovered new exit (range 16) 21378 | -5/Garrison | Expanded RIF knowledge: Autooverride 21729 | -5/Garrison | Entered Factory 21729 | -4/Factory | Accompanied by 9 allies 21729 | -4/Factory | Evolved 2 slots: Utility x2 21975 | -4/Factory | Discovered new exit (range 40) 21975 | -4/Factory | Discovered new exit (range 77) 22008 | -4/Factory | Fabricated Antimatter Reactor? 22717 | -4/Factory | Identified exit to Garrison 22717 | -4/Factory | Entered Garrison 22717 | -4/Garrison | Accompanied by 5 allies 22726 | -4/Garrison | Expanded RIF knowledge: Patrol Navigation 22838 | -4/Garrison | Phase Generator disabled 23020 | -4/Garrison | Triggered checkpoint 23101 | -4/Garrison | Garrison Relay disabled 23205 | -4/Garrison | Spotted B-86 Titan 23323 | -4/Garrison | Triggered checkpoint 23324 | -4/Garrison | Assimilated Titan 7a with formatsys_high 23334 | -4/Garrison | Triggered checkpoint 23610 | -4/Garrison | Discovered new exit (range 12) 23686 | -4/Garrison | Triggered checkpoint 23740 | -4/Garrison | Garrison Relay disabled 23838 | -4/Garrison | Triggered checkpoint 23868 | -4/Garrison | Triggered checkpoint 23923 | -4/Garrison | Garrison Relay disabled 23956 | -4/Garrison | Discovered new exit (range 21) 24080 | -4/Garrison | Triggered checkpoint 24231 | -4/Garrison | Discovered new exit (range 8) 24286 | -4/Garrison | Triggered checkpoint 24363 | -4/Garrison | Garrison Relay disabled 25404 | -4/Garrison | Entered Research 25404 | -3/Research | Accompanied by 13 allies 25404 | -3/Research | Evolved 2 slots: Utility x2 25498 | -3/Research | Found Imp. Powered Armor 25501 | -3/Research | Found Imp. Powered Armor 25505 | -3/Research | Found Imp. Powered Armor 25508 | -3/Research | Found Imp. Powered Armor 25512 | -3/Research | Found Imp. Powered Armor 25515 | -3/Research | Found Imp. Powered Armor 25519 | -3/Research | Found Imp. Powered Armor 25523 | -3/Research | Found Imp. Powered Armor 25691 | -3/Research | Identified exit to Garrison 26264 | -3/Research | P-80 Master assimilated allied Assassin 7c 26411 | -3/Research | P-80 Master assimilated allied Assassin 7d 26641 | -3/Research | Lost 3 parts (3u) 26720 | -3/Research | Found Gamma Bomb Array 26784 | -3/Research | Identified exit to Garrison 26784 | -3/Research | Entered Garrison 26794 | -3/Garrison | Expanded RIF knowledge: Autoassimilate 26978 | -3/Garrison | Triggered checkpoint 27053 | -3/Garrison | Garrison Relay disabled 27224 | -3/Garrison | Spotted B-86 Titan 27270 | -3/Garrison | Triggered checkpoint 27270 | -3/Garrison | Triggered checkpoint 27278 | -3/Garrison | Triggered checkpoint 27283 | -3/Garrison | Triggered checkpoint 27423 | -3/Garrison | Lost 6 parts (1n5u) 27535 | -3/Garrison | Discovered new exit (range 12) 27574 | -3/Garrison | Triggered checkpoint 27629 | -3/Garrison | Garrison Relay disabled 27824 | -3/Garrison | Found Antimissile System 27827 | -3/Garrison | Found Antimissile System 27855 | -3/Garrison | Discovered new exit (range 10) 28011 | -3/Garrison | Discovered new exit (range 10) 28090 | -3/Garrison | Garrison Relay disabled 28104 | -3/Garrison | Triggered checkpoint 28298 | -3/Garrison | Triggered checkpoint 28352 | -3/Garrison | Garrison Relay disabled 28564 | -3/Garrison | Entered Research 28564 | -2/Research | Accompanied by 8 allies 28564 | -2/Research | Evolved 2 slots: Utility x2 29062 | -2/Research | Identified exit to Garrison 29199 | -2/Research | Garrison activated, responded to threat 29302 | -2/Research | Entered Garrison 29302 | -2/Garrison | Accompanied by 11 allies 29318 | -2/Garrison | Triggered checkpoint 29592 | -2/Garrison | Triggered checkpoint 29610 | -2/Garrison | Garrison Relay disabled 29858 | -2/Garrison | Spotted B-90 Cyclops 32420 | -2/Garrison | Triggered checkpoint 32424 | -2/Garrison | Triggered checkpoint 32448 | -2/Garrison | Triggered checkpoint 32513 | -2/Garrison | Triggered checkpoint 32573 | -2/Garrison | Discovered new exit (range 21) 32687 | -2/Garrison | Garrison Relay disabled 32868 | -2/Garrison | Discovered new exit (range 13) 32899 | -2/Garrison | Expanded RIF knowledge: Program Shield 33036 | -2/Garrison | Triggered checkpoint 33054 | -2/Garrison | Garrison Relay disabled 33198 | -2/Garrison | Discovered new exit (range 11) 33294 | -2/Garrison | Triggered checkpoint 33323 | -2/Garrison | Garrison Relay disabled 33644 | -2/Garrison | Entered Research 33644 | -2/Research | Accompanied by 11 allies 33677 | -2/Research | Spotted B-90 Cyclops 33702 | -2/Research | Allies destroyed B-90 Cyclops 33949 | -2/Research | Garrison activated, responded to threat 34036 | -2/Research | Identified exit to Garrison 34067 | -2/Research | Discovered new exit (range 11) 34189 | -2/Research | Lost 3 parts (1n2u) 34300 | -2/Research | Garrison activated, responded to threat 34363 | -2/Research | Lost 3 parts (1u2w) 34698 | -2/Research | Identified exit to Garrison 34698 | -2/Research | Entered Garrison 34698 | -2/Garrison | Accompanied by 3 allies 34706 | -2/Garrison | Expanded RIF knowledge: Hotswap 34776 | -2/Garrison | Triggered checkpoint 34809 | -2/Garrison | Garrison Relay disabled 34917 | -2/Garrison | Spotted B-90 Cyclops 35009 | -2/Garrison | Allies destroyed B-90 Cyclops 35028 | -2/Garrison | Triggered checkpoint 35196 | -2/Garrison | Triggered checkpoint 35242 | -2/Garrison | Triggered checkpoint 35246 | -2/Garrison | Triggered checkpoint 35356 | -2/Garrison | Triggered checkpoint 35432 | -2/Garrison | Garrison Relay disabled 35656 | -2/Garrison | Triggered checkpoint 35671 | -2/Garrison | Garrison Relay disabled 35753 | -2/Garrison | Discovered new exit (range 12) 35854 | -2/Garrison | Discovered new exit (range 5) 35906 | -2/Garrison | Triggered checkpoint 35977 | -2/Garrison | Garrison Relay disabled 36297 | -2/Garrison | Entered Access 36297 | -1/Access | Accompanied by 7 allies 36297 | -1/Access | Evolved 2 slots: Utility x2 36574 | -1/Access | Garrison activated, responded to threat 36942 | -1/Access | Lost 6 parts (2p1n3u) 36988 | -1/Access | Found Gamma Bomb Array 37107 | -1/Access | Lost 5 parts (5u) 37150 | -1/Access | System corruption reached 10% 37190 | -1/Access | Lost 3 parts (1p2u) 37573 | -1/Access | Spotted B-99 Colossus 37574 | -1/Access | Spotted B-99 Colossus 37608 | -1/Access | Core integrity fell below 50% 37649 | -1/Access | Core integrity fell below 20% 37673 | -1/Access | Destroyed by B-99 Colossus with Linear Accelerator Last Messages --------------- 37662_ P-80 Master destroyed. 37662_ Penetrated by Slug. 37662_ Slug penetrates Sealed Heavy Doors. 37662_ Penetrated by Slug. 37662_ Slug penetrates Sealed Heavy Doors. 37664_ K-01 Serf collects debris. 37666_ Slug penetrates Sealed Heavy Doors. 37666_ Penetrated by Slug. 37666_ Slug penetrates Sealed Heavy Doors. 37666_ Acquired Imp. Antigrav System. 37667_ Penetrated by Slug. 37667_ Slug penetrates Sealed Heavy Doors. 37667_ Penetrated by Slug. 37667_ Slug penetrates Sealed Heavy Doors. 37667_ Penetrated by Slug. 37667_ Slug penetrates Sealed Heavy Doors. 37667_ K-01 Serf collects debris. 37671_ Slug penetrates Sealed Heavy Doors. 37671_ Penetrated by Slug. 37671_ K-01 Serf collects debris. Map ----- +----------------------------------------------------+ | ???????????????# #?? ???????????????????????? | | ???????????????# #?? ???????????????????????? | | ???????????????# #?##"+###????????????????????? | | ???????????????# #?# "?#####+??????????????? | | ???????????????# ### #? ???????????????? | | ???????????????# #?" #= ????????????????? | | ???????????????# #?" # ""?????? ?????????? | | ???????????????# #?# " """?" ?????????? | | ???????????????# ### # ""?"" ?????????? | | ???????????????# ### %=" ""?"" #????????? | | ???????????????# *%# "?""" #????????? | | ???????????????+ =*% # #????????? | | ???????????????# [ k%% # #????????? | | ???????????????# =%==%= + ]!!???????????? | | ???????????????# * # ?! #????????? | | ???????????????# %* # ]! ???????????? | | ???????????????# ###### ####??????????????????? | | ???????????????# #?# #??????????????????? | | ##########?????# #?# R #???????????????#### | | ####### #?# % #??????????????# | | # # #?# =* #??????????????# | | " #!! # #?# !=BB!#??????????????# | | """ #!! + #?# ![[BB=#??????????????# | | """ #! # #?# |[[![ #??????????????# | | " # # #?#"""""p|"""#??????????????# | | # ! = # #??????"@""?????????????????# | | ! ####### #??????"""??????????????????# | | ####+##### ## #???????????????????????????# | | "T ## #???????????????????????????# | | "" ## #???????????????????????????# = | | ### ##### ## #???????????????????????????# | | ??# #???## ### #??????????????############## | | ??# #????# #?# #??????????????# + | | ??# #????# #?# #??????????????# # | | ### #????# #?# #??????????????# ##### | | #????# #?# #??????????????# !!! #???? | | #????# #?# #??????????????# !! #???? | | ######????# #?# #?""""""""""""?# !! #???? | | ??????????# #?# #?#"" #?# #???? | | ########### #?# #?#"" #?# ! #???? | | ## #?# #?#"" #?# #???? | | ## #?# #?#T #?# | #???? | | ## #?# #?#"" #?# #???? | | ## #?# #?#"" #?# #???? | | * ## ### ###"" #####+##########???? | | ## #######???? | | ## # ! #???? | | ############################ # #???? | | !#?????????????############## # #???? | | #?????????????# | # # #???? | +----------------------------------------------------+ Best States ------------- Heat Dissipation 128 Coolant Potential 65 Energy Generation 25 Energy Capacity 650 Matter Stores 300 Matter Capacity 300 Sight Range 22 Robot Scan Range 13 Terrain Scan Density 10 Cloak Strength 4 Corruption Prevention 24 Armor Coverage 2000 Resistance: TH 15 Resistance: EM 20 Weapon Shielding 66 Point Defense Rating 240 Phase Shifting 15 Evasion (%) 55 Targeting Accuracy 24 Recoil Reduction 2 Offensive Hacking 10 Relay Coupler Types 185 Relay Coupler Value 8 Item Schematics ----------------- Arm. Wheel | -9/Materials | Scanalyzed Adv. Beam Cannon | -9/Materials | Scanalyzed Imp. Heat Sink | -9/Materials | Scanalyzed Imp. Ion Engine | -9/Materials | Scanalyzed Grenade Launcher | -9/Materials | Scanalyzed Remote Datajack | -7/Factory | Scanalyzed Robot Schematics ------------------ None Fabricated ------------ Remote Datajack | x1 | -7/Factory Antimatter Reactor | x2 | -4/Factory | Preloaded Alien Tech Used ----------------- None Achievements -------------- Preemptive Strike Challenges ------------ None Game ------ Seed ChipEnergyShockpuncher Manual? 0 Play Time 08:05:01 Cumulative 143.6 hours Start 2021.02.24 @ 11:49:12 End 2021.02.25 @ 01:36:46 Sessions 5 Manual Loads 0 Difficulty Rogue Special Mode None Game No. 67 Rogue 62 Adventurer 5 Explorer 0 Win Type - Total 5 Types 3/0/1/1/0/0/0/0/0 Lore% 66 Gallery% 74 Achievement% 56 Wizard Run 0 Options --------- ASCII 0 Keyboard 0 Movement Mouse Keybinds 0 Fullscreen 2 Font 18/Terminus Map View 76x50 Tactical HUD 1 Map Filters NONE Filters NONE Steam 0 RUN: f0d30e23-1db9-4996-bf87-1ce8535fc37e